[Event "EYCC Open-U10 2019"]
[Site "Bratislava"]
[Date "2019.08.05"]
[Round "4.7"]
[White "Jaakkola, Niklas"]
[Black "Azadaliyev, Jahandar"]
[Result "0-1"]
[ECO "B31"]
[WhiteElo "1587"]
[BlackElo "1905"]
[Annotator "NA"]
[PlyCount "158"]
[EventDate "2019.08.02"]
[EventType "swiss"]
[EventCountry "SVK"]
[SourceTitle "playchess.com"]
[Source "ChessBase"]
[SourceQuality "1"]
[TimeControl "40/5400+30:1800+30"]

1. e4 {[%emt 0:00:00]} c5 {[%emt 0:00:00]} 2. Nf3 {[%emt 0:00:00]} Nc6 {[%emt 0:00:27]} 3. Bb5 {[%emt 0:03:41]} g6 {[%emt 0:01:14]} 4. Bxc6 {[%emt 0:03:11]} dxc6 {[%emt 0:02:01]} 5. O-O {[%emt 0:06:05]} Bg7 {[%emt 0:05:56]} 6. d3 {[%emt 0:10:18]} e5 {[%emt 0:04:17]} 7. Re1 {[%emt 0:13:24]} Ne7 {[%emt 0:03:11]} 8. Be3 {[%emt 0:09:14]} b6 {[%emt 0:03:47]} 9. Nbd2 {[%emt 0:10:00]} O-O {[%emt 0:03:53]} 10. Nc4 {[%emt 0:06:51]} Bg4 {[%emt 0:12:56]} 11. h3 {[%emt 0:09:20]} Bxf3 {[%emt 0:00:45]} 12. Qxf3 {[%emt 0:04:19]} Qd7 {[%emt 0:02:13]} 13. Bg5 {[%emt 0:01:49]} f6 {[%emt 0:00:39]} 14. Bh4 {[%emt 0:01:15]} g5 {[%emt 0:01:45]} 15. Bg3 {[%emt 0:00:31]} Nc8 {[%emt 0:06:47]} 16. Ne3 {[%emt 0:02:05]} Ne7 {[%emt 0:02:41]} 17. Nf5 {[%emt 0:01:46]} Nxf5 {[%emt 0:00:47]} 18. exf5 {[%emt 0:00:59]} Qd4 {[%emt 0:01:34]} 19. c3 {[%emt 0:03:54]} Qd7 {[%emt 0:04:38]} 20. Rad1 {[%emt 0:00:57]} Rad8 {[%emt 0:00:59]} 21. Re2 {[%emt 0:00:49]} Qd5 {[%emt 0:00:53]} 22. Qxd5+ {[%emt 0:01:21]} Rxd5 {[%emt 0:00:38]} 23. c4 {[%emt 0:00:16]} Rd7 {[%emt 0:00:35]} 24. Red2 {[%emt 0:00:22]} Rfd8 {[%emt 0:00:22]} 25. f3 {[%emt 0:00:28]} Bh6 {[%emt 0:00:30]} 26. Kf1 {[%emt 0:04:20]} g4 {[%emt 0:00:24]} 27. hxg4 {[%emt 0:00:10]} Bxd2 {[%emt 0:00:11]} 28. Rxd2 {[%emt 0:00:21]} Rxd3 {[%emt 0:00:17]} 29. Rxd3 {[%emt 0:00:08]} Rxd3 {[%emt 0:00:01]} 30. Ke2 {[%emt 0:00:21]} Rd4 {[%emt 0:00:19]} 31. b3 {[%emt 0:00:21]} a5 {[%emt 0:00:35]} 32. a4 {[%emt 0:00:34]} Rd7 {[%emt 0:02:05]} 33. Bf2 {[%emt 0:00:17]} b5 {[%emt 0:02:08]} 34. cxb5 {[%emt 0:00:46]} cxb5 35. Bxc5 {[%emt 0:00:31]} bxa4 {[%emt 0:00:13]} 36. bxa4 {[%emt 0:00:50]} Kf7 {[%emt 0:01:46]} 37. Bb6 {[%emt 0:00:44]} Rb7 {[%emt 0:01:20]} 38. Bxa5 {[%emt 0:00:35]} Ra7 {[%emt 0:00:07]} 39. Bb6 {[%emt 0:00:52]} Rxa4 {[%emt 0:00:07]} 40. Kf2 {[%emt 0:00:00]} e4 {[%emt 0:00:00]} 41. Ke3 {[%emt 0:02:15]} exf3 {[%emt 0:02:07]} 42. Kxf3 {[%emt 0:03:12]} Ke8 {[%emt 0:01:10]} 43. Bc7 {[%emt 0:02:09]} Rc4 {[%emt 0:01:15]} 44. Bf4 {[%emt 0:03:49]} Rc2 {[%emt 0:01:20]} 45. Bd6 {[%emt 0:03:03]} Rc3+ {[%emt 0:02:40]} 46. Kf2 {[%emt 0:03:02]} Rc1 {[%emt 0:01:58]} 47. Kf3 {[%emt 0:02:21]} Rh1 {[%emt 0:00:22]} 48. Bb8 {[%emt 0:01:23]} Kd7 49. Ba7 {[%emt 0:00:53]} Rd1 {[%emt 0:04:44]} 50. Bb8 {[%emt 0:00:57]} Rf1+ {[%emt 0:03:36]} 51. Ke3 {[%emt 0:01:02]} Kc6 {[%emt 0:01:14]} 52. Ba7 {[%emt 0:02:31]} Kd5 {[%emt 0:00:55]} 53. Bb8 {[%emt 0:03:12]} Ra1 {[%emt 0:01:22]} 54. Bc7 {[%emt 0:01:22]} Rc1 {[%emt 0:00:52]} 55. Bb8 {[%emt 0:03:02]} Rg1 {[%emt 0:00:46]} 56. Kf3 {[%emt 0:00:51]} Rb1 {[%emt 0:01:02]} 57. Ba7 {[%emt 0:01:13]} Ke5 {[%emt 0:00:12]} 58. Kg3 {[%emt 0:06:35]} Rb5 {[%emt 0:03:18]} 59. Bf2 {[%emt 0:00:46]} Rb3+ {[%emt 0:00:12]} 60. Kh4 {[%emt 0:00:25]} Kf4 {[%emt 0:03:04]} 61. Bc5 {[%emt 0:00:23]} Rb1 {[%emt 0:02:10]} 62. Bd6+ {[%emt 0:00:18]} Ke4 {[%emt 0:00:27]} 63. Kg3 {[%emt 0:00:38]} Rb7 {[%emt 0:01:06]} 64. Kh4 {[%emt 0:00:35]} Kd5 {[%emt 0:01:52]} 65. Bf4 {[%emt 0:00:12]} Ke4 {[%emt 0:00:38]} 66. Bd6 {[%emt 0:00:07]} Rb1 {[%emt 0:00:23]} 67. Kg3 {[%emt 0:00:30]} Rh1 {[%emt 0:01:27]} 68. Be7 {[%emt 0:01:53]} Ke5 {[%emt 0:00:14]} 69. Kf3 {[%emt 0:00:33]} h5 {[%emt 0:00:33]} 70. gxh5 {[%emt 0:00:47]} Rxh5 {[%emt 0:00:06]} 71. g4 {[%emt 0:00:38]} Rh3+ {[%emt 0:00:11]} 72. Kg2 {[%emt 0:00:43]} Rh7 {[%emt 0:00:03]} 73. Bb4 {[%emt 0:00:47]} Kf4 {[%emt 0:00:15]} 74. Bc3 {[%emt 0:00:06]} Rf7 {[%emt 0:00:14]} 75. Kh3 {[%emt 0:00:12]} Kf3 {[%emt 0:00:04]} 76. Bxf6 {[%emt 0:01:09]} Rxf6 {[%emt 0:00:17]} 77. g5 {[%emt 0:00:18]} Rxf5 {[%emt 0:00:10]} 78. Kh4 {[%emt 0:00:09]} Kf4 {[%emt 0:00:04]} 79. g6 {[%emt 0:00:15]} Rg5 0-1

[Event "EYCC Open-U10 2019"]
[Site "Bratislava"]
[Date "2019.08.05"]
[Round "4.8"]
[White "Kononenko, Vladimir"]
[Black "Haubold, Sebastian Marcel"]
[Result "1-0"]
[ECO "A57"]
[WhiteElo "1667"]
[BlackElo "1455"]
[Annotator "NA"]
[PlyCount "97"]
[EventDate "2019.08.02"]
[EventType "swiss"]
[EventCountry "SVK"]
[SourceTitle "playchess.com"]
[Source "ChessBase"]
[SourceQuality "1"]
[TimeControl "40/5400+30:1800+30"]

1. d4 {[%emt 0:00:00]} Nf6 {[%emt 0:00:00]} 2. c4 {[%emt 0:00:00]} c5 {[%emt 0:00:00]} 3. d5 {[%emt 0:00:00]} b5 {[%emt 0:00:00]} 4. cxb5 {[%emt 0:00:15]} a6 {[%emt 0:00:06]} 5. b6 {[%emt 0:00:37]} Qxb6 {[%emt 0:01:21]} 6. Nc3 {[%emt 0:01:50]} g6 {[%emt 0:02:36]} 7. e4 {[%emt 0:03:49]} d6 {[%emt 0:02:42]} 8. Nf3 {[%emt 0:03:07]} Nbd7 {[%emt 0:03:06]} 9. Bd3 {[%emt 0:03:20]} Bg7 {[%emt 0:05:22]} 10. O-O {[%emt 0:03:58]} O-O {[%emt 0:01:09]} 11. Kh1 {[%emt 0:05:36]} Ng4 {[%emt 0:10:14]} 12. Qc2 {[%emt 0:09:17]} Rb8 {[%emt 0:08:10]} 13. h3 {[%emt 0:06:41]} Nge5 {[%emt 0:00:36]} 14. Nxe5 {[%emt 0:00:39]} Nxe5 {[%emt 0:00:06]} 15. Be2 {[%emt 0:00:42]} a5 {[%emt 0:06:41]} 16. f4 {[%emt 0:03:18]} Nd7 {[%emt 0:03:34]} 17. Nb5 {[%emt 0:04:17]} Ba6 {[%emt 0:11:22]} 18. a4 {[%emt 0:02:51]} Rfc8 {[%emt 0:03:25]} 19. Bc4 {[%emt 0:04:06]} Re8 {[%emt 0:11:31]} 20. Ra3 {[%emt 0:04:20]} e6 {[%emt 0:06:09]} 21. dxe6 {[%emt 0:12:15]} fxe6 {[%emt 0:00:00]} 22. Rd3 {[%emt 0:00:33]} Bxb5 {[%emt 0:00:11]} 23. Bxb5 {[%emt 0:00:46]} Re7 {[%emt 0:02:56]} 24. Be3 {[%emt 0:08:33]} Bf8 {[%emt 0:04:47]} 25. Rfd1 {[%emt 0:01:41]} Rf7 {[%emt 0:02:39]} 26. Qc4 {[%emt 0:01:16]} Re8 {[%emt 0:06:49]} 27. b3 Rg7 {[%emt 0:02:10]} 28. Bxd7 {[%emt 0:10:45]} Rxd7 {[%emt 0:00:13]} 29. Bxc5 {[%emt 0:00:11]} Qb8 {[%emt 0:00:44]} 30. Qa6 {[%emt 0:03:12]} Red8 {[%emt 0:01:13]} 31. Qxa5 {[%emt 0:01:11]} Qb7 {[%emt 0:00:20]} 32. Ba3 {[%emt 0:02:01]} Qxe4 {[%emt 0:00:14]} 33. Qe1 {[%emt 0:00:01]} Qf5 {[%emt 0:00:16]} 34. a5 {[%emt 0:01:24]} Kf7 {[%emt 0:00:27]} 35. a6 {[%emt 0:01:07]} Qb5 {[%emt 0:00:18]} 36. Bb2 {[%emt 0:00:38]} Qxa6 {[%emt 0:00:17]} 37. Qc3 {[%emt 0:00:18]} d5 {[%emt 0:00:58]} 38. Qf6+ {[%emt 0:02:00]} Ke8 {[%emt 0:00:01]} 39. Re3 {[%emt 0:00:00]} Re7 {[%emt 0:00:00]} 40. Qg5 {[%emt 0:00:00]} Bg7 {[%emt 0:00:00]} 41. Bxg7 {[%emt 0:02:40]} Rxg7 {[%emt 0:06:52]} 42. f5 {[%emt 0:00:45]} Rd6 {[%emt 0:05:30]} 43. fxe6 {[%emt 0:04:20]} Re7 {[%emt 0:02:24]} 44. Rde1 {[%emt 0:07:24]} Rdxe6 {[%emt 0:01:21]} 45. Qxe7+ {[%emt 0:01:08]} Rxe7 {[%emt 0:00:17]} 46. Rxe7+ {[%emt 0:00:02]} Kf8 {[%emt 0:00:29]} 47. Rxh7 {[%emt 0:02:12]} Qd3 {[%emt 0:01:59]} 48. Ra1 {[%emt 0:01:51]} Kg8 {[%emt 0:00:22]} 49. Rb7 {[%emt 0:01:07]} 1-0

[Event "EYCC Open-U10 2019"]
[Site "Bratislava"]
[Date "2019.08.05"]
[Round "4.9"]
[White "Ljepic, Andrej"]
[Black "Shearsby, Jude"]
[Result "1-0"]
[ECO "B00"]
[WhiteElo "1824"]
[BlackElo "1486"]
[Annotator "NA"]
[PlyCount "47"]
[EventDate "2019.08.02"]
[EventType "swiss"]
[EventCountry "SVK"]
[SourceTitle "playchess.com"]
[Source "ChessBase"]
[SourceQuality "1"]
[TimeControl "40/5400+30:1800+30"]

1. e4 Nc6 2. Nf3 d6 3. d4 Nf6 4. Nc3 g6 5. h3 Bg7 6. Be3 O-O 7. d5 Nb8 8. Qd2 c6 9. O-O-O cxd5 10. exd5 Nbd7 11. Bh6 a6 12. h4 Qb6 13. Bxg7 Kxg7 14. h5 Ng4 15. Nd4 Ndf6 16. f3 Ne5 17. g4 Rh8 18. hxg6 fxg6 19. Qe3 Qd8 20. Re1 b5 21. g5 Ng8 22. f4 Ng4 23. Ne6+ Bxe6 24. Qd4+ 1-0

[Event "EYCC Open-U10 2019"]
[Site "Bratislava"]
[Date "2019.08.05"]
[Round "4.10"]
[White "Efimov, Leonid"]
[Black "Gordeev, Denis"]
[Result "1-0"]
[ECO "A43"]
[WhiteElo "1773"]
[BlackElo "1467"]
[Annotator "NA"]
[PlyCount "109"]
[EventDate "2019.08.02"]
[EventType "swiss"]
[EventCountry "SVK"]
[SourceTitle "playchess.com"]
[Source "ChessBase"]
[SourceQuality "1"]
[TimeControl "40/5400+30:1800+30"]

1. d4 {[%emt 0:00:00]} c5 {[%emt 0:00:00]} 2. d5 {[%emt 0:00:00]} g6 {[%emt 0:00:19]} 3. e4 {[%emt 0:00:03]} Bg7 {[%emt 0:00:23]} 4. Nc3 {[%emt 0:00:41]} d6 {[%emt 0:00:26]} 5. Nf3 {[%emt 0:01:16]} Nf6 {[%emt 0:00:42]} 6. Bc4 {[%emt 0:01:38]} O-O {[%emt 0:02:05]} 7. O-O {[%emt 0:01:42]} Bg4 {[%emt 0:04:39]} 8. h3 {[%emt 0:00:53]} Bxf3 {[%emt 0:00:33]} 9. Qxf3 {[%emt 0:00:53]} Na6 {[%emt 0:04:16]} 10. Re1 {[%emt 0:04:22]} Nc7 {[%emt 0:05:55]} 11. Bf4 {[%emt 0:04:25]} Nd7 {[%emt 0:00:53]} 12. Qd1 {[%emt 0:05:03]} Ne5 {[%emt 0:05:33]} 13. Bf1 {[%emt 0:04:15]} a6 {[%emt 0:08:09]} 14. a4 {[%emt 0:01:33]} b6 {[%emt 0:09:56]} 15. Bh2 {[%emt 0:10:06]} g5 {[%emt 0:11:11]} 16. Qh5 {[%emt 0:05:33]} e6 {[%emt 0:04:16]} 17. Rad1 {[%emt 0:08:52]} Qf6 {[%emt 0:02:14]} 18. Bg3 {[%emt 0:04:39]} Rad8 {[%emt 0:02:40]} 19. f4 {[%emt 0:03:34]} Qg6 {[%emt 0:07:39]} 20. Qxg5 {[%emt 0:04:42]} Qxg5 {[%emt 0:01:11]} 21. fxg5 {[%emt 0:00:37]} Rfe8 {[%emt 0:01:51]} 22. Be2 {[%emt 0:07:15]} Rd7 {[%emt 0:05:32]} 23. h4 {[%emt 0:15:14]} Red8 {[%emt 0:01:45]} 24. h5 {[%emt 0:00:46]} Kf8 {[%emt 0:02:10]} 25. Bh4 {[%emt 0:01:09]} Re8 {[%emt 0:01:30]} 26. Rf1 {[%emt 0:02:03]} Kg8 {[%emt 0:01:42]} 27. Kh1 {[%emt 0:03:59]} Rb8 {[%emt 0:01:07]} 28. Ra1 {[%emt 0:01:48]} exd5 {[%emt 0:00:51]} 29. Nxd5 {[%emt 0:01:43]} Nxd5 {[%emt 0:02:32]} 30. exd5 {[%emt 0:00:01]} b5 {[%emt 0:01:28]} 31. axb5 {[%emt 0:00:06]} axb5 {[%emt 0:00:05]} 32. Ra6 {[%emt 0:01:45]} Nc4 {[%emt 0:01:25]} 33. Bg4 {[%emt 0:02:26]} Rc7 {[%emt 0:01:12]} 34. Re1 {[%emt 0:00:39]} Bxb2 {[%emt 0:00:33]} 35. Bg3 {[%emt 0:01:09]} Be5 {[%emt 0:01:14]} 36. Bxe5 {[%emt 0:00:40]} Nxe5 {[%emt 0:00:05]} 37. Bf5 {[%emt 0:00:04]} Rd8 {[%emt 0:01:24]} 38. Rb6 {[%emt 0:00:10]} b4 {[%emt 0:00:10]} 39. Ra1 {[%emt 0:00:08]} Nc4 {[%emt 0:00:17]} 40. Rba6 {[%emt 0:00:00]} Ne3 {[%emt 0:00:00]} 41. Ra8 {[%emt 0:00:43]} Rf8 {[%emt 0:06:15]} 42. Bxh7+ {[%emt 0:01:07]} Kg7 {[%emt 0:00:11]} 43. h6+ {[%emt 0:00:15]} Kxh7 {[%emt 0:00:05]} 44. Rxf8 {[%emt 0:00:04]} Nxd5 {[%emt 0:00:11]} 45. Raa8 {[%emt 0:00:24]} Ne3 {[%emt 0:00:47]} 46. Rh8+ {[%emt 0:00:17]} Kg6 {[%emt 0:00:05]} 47. Rhg8+ {[%emt 0:00:01]} Kf5 {[%emt 0:00:08]} 48. h7 {[%emt 0:00:32]} Nxc2 {[%emt 0:00:14]} 49. h8=Q {[%emt 0:00:17]} b3 {[%emt 0:00:09]} 50. Qf6+ {[%emt 0:00:56]} Ke4 {[%emt 0:00:06]} 51. Rge8+ {[%emt 0:00:48]} Kd3 {[%emt 0:00:06]} 52. Qf3+ {[%emt 0:00:22]} Kd2 {[%emt 0:00:09]} 53. Re2+ {[%emt 0:00:51]} Kc1 {[%emt 0:00:05]} 54. Ra1+ {[%emt 0:00:09]} Kb2 {[%emt 0:00:08]} 55. Qf6# {[%emt 0:00:04]} 1-0

[Event "EYCC Open-U10 2019"]
[Site "Bratislava"]
[Date "2019.08.06"]
[Round "5.1"]
[White "Samunenkov, Ihor"]
[Black "Materia, Marco"]
[Result "1-0"]
[ECO "C55"]
[WhiteElo "1985"]
[BlackElo "2243"]
[Annotator "NA"]
[PlyCount "137"]
[EventDate "2019.08.02"]
[EventType "swiss"]
[EventCountry "SVK"]
[SourceTitle "playchess.com"]
[Source "ChessBase"]
[SourceQuality "1"]
[TimeControl "40/5400+30:1800+30"]

1. e4 e5 2. Nf3 Nc6 3. d4 exd4 4. Bc4 Nf6 5. e5 d5 6. Bb5 Ne4 7. Nxd4 Bc5 8. Be3 O-O 9. Nxc6 bxc6 10. Bxc5 Nxc5 11. Bxc6 Rb8 12. Qxd5 Qe7 13. O-O Rxb2 14. Nc3 Rxc2 15. Qd4 Ba6 16. Rfd1 Ne6 17. Nd5 Qa3 18. Qa4 Qxa4 19. Bxa4 Re2 20. Re1 c5 21. Rxe2 Bxe2 22. Rc1 Rb8 23. f4 g6 24. Bb3 Kg7 25. Kf2 Bb5 26. Ke3 Rd8 27. Rd1 Nd4 28. Nc3 Bc6 29. g4 Rb8 30. Rb1 Bd7 31. Bd1 Rxb1 32. Nxb1 f6 33. Nd2 f5 34. g5 h6 35. h4 hxg5 36. hxg5 Kf7 37. Nb3 Nxb3 38. Bxb3+ Ke7 39. Kd3 Bb5+ 40. Bc4 Bc6 41. Kc3 Bd7 42. Bb3 Bb5 43. a4 Ba6 44. a5 Bb5 45. Bc4 Bc6 46. Bb3 Bb5 47. Bc2 Ba6 48. Bd3 Bb7 49. Bb5 Bd5 50. Ba4 Be6 51. Bb3 Bd7 52. Bg8 Bb5 53. e6 Kf8 54. Bf7 Be8 55. Bxe8 Kxe8 56. Kc4 Ke7 57. Kxc5 Kxe6 58. Kc6 a6 59. Kb6 Kd6 60. Kxa6 Kd5 61. Kb5 Ke4 62. a6 Kxf4 63. a7 Kxg5 64. a8=Q f4 65. Qf3 Kf5 66. Kc4 g5 67. Qh5 Ke4 68. Qxg5 f3 69. Qd2 {Kd5+} 1-0

[Event "EYCC Open-U10 2019"]
[Site "Bratislava"]
[Date "2019.08.06"]
[Round "5.2"]
[White "Usov, Aleksandr E."]
[Black "Vetokhin, Savva"]
[Result "0-1"]
[ECO "B22"]
[WhiteElo "1809"]
[BlackElo "1954"]
[Annotator "NA"]
[PlyCount "130"]
[EventDate "2019.08.02"]
[EventType "swiss"]
[EventCountry "SVK"]
[SourceTitle "playchess.com"]
[Source "ChessBase"]
[SourceQuality "1"]
[TimeControl "40/5400+30:1800+30"]

1. e4 c5 2. c3 Nf6 3. e5 Nd5 4. d4 cxd4 5. Nf3 Nc6 6. cxd4 d6 7. Bc4 dxe5 8. Nxe5 e6 9. Nxc6 bxc6 10. O-O Be7 11. Nc3 O-O 12. Ne4 Nf6 13. Ng5 Qb6 14. Nf3 Rd8 15. Qc2 Bb7 16. Qb3 Nd5 17. Be3 Nxe3 18. fxe3 c5 19. Ne5 Bf6 20. Rad1 cxd4 21. Qxb6 axb6 22. exd4 Rd6 23. Be2 Rxa2 24. Bh5 Rxb2 25. Bf3 Bxf3 26. Nxf3 Rb4 27. Rc1 Bxd4+ 28. Kh1 Bc5 29. Ra1 h6 30. h4 Rd5 31. g3 e5 32. Nh2 Rd7 33. Ra8+ Kh7 34. Nf3 Re7 35. h5 e4 36. Nh4 e3 37. Re1 e2 38. Nf3 Bf2 39. Rc1 e1=Q+ 40. Nxe1 Rxe1+ 41. Rxe1 Bxe1 42. Rf8 Rb5 43. g4 Rg5 44. Rxf7 Rxg4 45. Kh2 Rh4+ 46. Kg2 Rxh5 47. Kg1 b5 48. Rb7 b4 49. Kg2 Rc5 50. Kf1 Rc1 51. Ke2 h5 52. Kf3 h4 53. Kg2 Rb1 54. Kh3 b3 55. Kg4 b2 56. Rb3 Bc3 57. Kg5 Rg1+ 58. Kh5 b1=Q 59. Rxb1 Rxb1 60. Kg4 g5 61. Kh3 Kh6 62. Kg4 Rg1+ 63. Kh3 Kh5 64. Kh2 Bd4 65. Kh3 g4+ 0-1

[Event "EYCC Open-U10 2019"]
[Site "Bratislava"]
[Date "2019.08.06"]
[Round "5.3"]
[White "Finek, Vaclav"]
[Black "Giang, Tran Nam"]
[Result "1-0"]
[ECO "D27"]
[WhiteElo "2043"]
[BlackElo "1931"]
[Annotator "NA"]
[PlyCount "119"]
[EventDate "2019.08.02"]
[EventType "swiss"]
[EventCountry "SVK"]
[SourceTitle "playchess.com"]
[Source "ChessBase"]
[SourceQuality "1"]
[TimeControl "40/5400+30:1800+30"]

1. d4 {[%emt 0:00:00]} d5 {[%emt 0:00:00]} 2. c4 {[%emt 0:00:00]} dxc4 {[%emt 0:00:00]} 3. Nf3 {[%emt 0:00:00]} a6 {[%emt 0:00:00]} 4. e3 {[%emt 0:02:58]} e6 {[%emt 0:00:00]} 5. Bxc4 {[%emt 0:00:13]} c5 {[%emt 0:00:00]} 6. O-O {[%emt 0:00:24]} Nf6 {[%emt 0:00:10]} 7. Nc3 {[%emt 0:00:52]} b5 {[%emt 0:00:11]} 8. Be2 {[%emt 0:00:23]} Bb7 {[%emt 0:04:08]} 9. dxc5 {[%emt 0:02:21]} Bxc5 {[%emt 0:01:27]} 10. Qxd8+ {[%emt 0:00:44]} Kxd8 {[%emt 0:00:31]} 11. Nd2 {[%emt 0:01:42]} Nbd7 {[%emt 0:03:52]} 12. Nb3 {[%emt 0:00:52]} Bb6 {[%emt 0:01:30]} 13. a4 {[%emt 0:02:17]} b4 {[%emt 0:02:14]} 14. a5 {[%emt 0:00:31]} Bc7 {[%emt 0:03:43]} 15. Na4 {[%emt 0:08:55]} Bd6 {[%emt 0:06:39]} 16. Nb6 {[%emt 0:06:50]} Nxb6 {[%emt 0:01:36]} 17. axb6 {[%emt 0:00:09]} Ke7 {[%emt 0:05:45]} 18. Na5 {[%emt 0:04:16]} Bd5 {[%emt 0:02:57]} 19. b7 {[%emt 0:08:35]} Rab8 {[%emt 0:07:31]} 20. Bxa6 {[%emt 0:05:06]} Ne4 {[%emt 0:07:36]} 21. Bb5 {[%emt 0:04:05]} Nc5 {[%emt 0:14:20]} 22. Nc6+ {[%emt 0:13:09]} Bxc6 {[%emt 0:00:45]} 23. Bxc6 {[%emt 0:00:08]} Kd8 {[%emt 0:00:38]} 24. Rd1 {[%emt 0:03:10]} Kc7 {[%emt 0:00:17]} 25. Bf3 {[%emt 0:00:14]} Rhd8 {[%emt 0:05:03]} 26. Bd2 {[%emt 0:07:20]} Nb3 {[%emt 0:01:41]} 27. Ra6 {[%emt 0:02:43]} Rxb7 {[%emt 0:10:35]} 28. Be1 {[%emt 0:06:07]} Rb6 {[%emt 0:06:30]} 29. Rxb6 {[%emt 0:02:39]} Kxb6 {[%emt 0:00:02]} 30. Bxb4 {[%emt 0:00:52]} Bc7 {[%emt 0:00:11]} 31. Bc3 {[%emt 0:01:13]} f6 {[%emt 0:01:13]} 32. Rxd8 {[%emt 0:00:37]} Bxd8 {[%emt 0:00:01]} 33. Bd1 {[%emt 0:02:07]} Nc5 {[%emt 0:00:30]} 34. Bc2 {[%emt 0:00:05]} h6 {[%emt 0:00:29]} 35. b4 {[%emt 0:01:58]} Na6 {[%emt 0:00:32]} 36. Bd4+ {[%emt 0:02:22]} Kc6 {[%emt 0:01:37]} 37. Be4+ {[%emt 0:01:09]} Kd7 {[%emt 0:01:21]} 38. b5 {[%emt 0:01:28]} Nb8 {[%emt 0:00:34]} 39. Bc5 {[%emt 0:03:07]} Be7 {[%emt 0:01:44]} 40. Ba7 {[%emt 0:00:00]} Bd6 {[%emt 0:00:00]} 41. g4 {[%emt 0:03:06]} Kc7 {[%emt 0:02:41]} 42. b6+ {[%emt 0:02:16]} Kc8 {[%emt 0:01:26]} 43. h3 {[%emt 0:02:11]} Nd7 {[%emt 0:02:58]} 44. Kf1 {[%emt 0:11:53]} Bb4 {[%emt 0:04:59]} 45. Ke2 {[%emt 0:02:36]} Ba5 {[%emt 0:01:00]} 46. b7+ {[%emt 0:00:21]} Kc7 {[%emt 0:00:05]} 47. Kd3 {[%emt 0:01:05]} Bb4 {[%emt 0:04:06]} 48. Kc4 {[%emt 0:01:19]} Bd6 {[%emt 0:00:01]} 49. f4 {[%emt 0:03:29]} g5 {[%emt 0:03:00]} 50. f5 {[%emt 0:02:40]} exf5 {[%emt 0:00:22]} 51. gxf5 {[%emt 0:00:23]} h5 {[%emt 0:03:01]} 52. Kd5 {[%emt 0:01:18]} Be5 {[%emt 0:01:33]} 53. Ke6 {[%emt 0:01:20]} g4 {[%emt 0:02:29]} 54. hxg4 {[%emt 0:00:12]} hxg4 {[%emt 0:00:01]} 55. Bd4 {[%emt 0:02:39]} Bxd4 {[%emt 0:00:43]} 56. exd4 {[%emt 0:00:08]} g3 {[%emt 0:00:25]} 57. Bg2 {[%emt 0:00:37]} Kd8 {[%emt 0:01:25]} 58. Bh1 {[%emt 0:01:09]} Kc7 {[%emt 0:00:08]} 59. Ke7 {[%emt 0:00:24]} Nb8 {[%emt 0:00:52]} 60. Kxf6 {[%emt 0:00:12]} 1-0

[Event "EYCC Open-U10 2019"]
[Site "Bratislava"]
[Date "2019.08.06"]
[Round "5.4"]
[White "Azadaliyev, Jahandar"]
[Black "Efimov, Leonid"]
[Result "1-0"]
[ECO "E20"]
[WhiteElo "1905"]
[BlackElo "1773"]
[Annotator "NA"]
[PlyCount "119"]
[EventDate "2019.08.02"]
[EventType "swiss"]
[EventCountry "SVK"]
[SourceTitle "playchess.com"]
[Source "ChessBase"]
[SourceQuality "1"]
[TimeControl "40/5400+30:1800+30"]

1. d4 {[%emt 0:00:00]} Nf6 {[%emt 0:00:00]} 2. c4 {[%emt 0:00:22]} e6 {[%emt 0:00:26]} 3. Nc3 {[%emt 0:00:35]} Bb4 {[%emt 0:00:22]} 4. g3 {[%emt 0:00:51]} O-O {[%emt 0:01:35]} 5. Bg2 {[%emt 0:01:18]} d5 {[%emt 0:00:25]} 6. Nf3 {[%emt 0:01:20]} dxc4 {[%emt 0:01:55]} 7. O-O {[%emt 0:02:02]} c5 {[%emt 0:04:08]} 8. dxc5 {[%emt 0:03:46]} Qxd1 {[%emt 0:06:04]} 9. Rxd1 {[%emt 0:00:51]} Bd7 {[%emt 0:02:29]} 10. Ne5 {[%emt 0:04:16]} Bc6 {[%emt 0:00:40]} 11. Be3 {[%emt 0:06:43]} Bxg2 {[%emt 0:08:53]} 12. Kxg2 {[%emt 0:00:03]} Na6 {[%emt 0:07:22]} 13. c6 {[%emt 0:06:30]} Bxc3 {[%emt 0:21:40]} 14. cxb7 {[%emt 0:14:01]} Bxe5 {[%emt 0:02:50]} 15. bxa8=Q {[%emt 0:00:00]} Rxa8 {[%emt 0:00:00]} 16. Rac1 {[%emt 0:00:06]} Nd5 17. Rxc4 {[%emt 0:08:30]} Nxe3+ {[%emt 0:14:13]} 18. fxe3 {[%emt 0:00:02]} h6 {[%emt 0:01:12]} 19. b4 {[%emt 0:05:10]} Rb8 {[%emt 0:04:54]} 20. a3 {[%emt 0:01:28]} Nc7 {[%emt 0:01:49]} 21. Rc5 {[%emt 0:02:11]} Nd5 {[%emt 0:00:19]} 22. Kf3 {[%emt 0:00:33]} Bb2 {[%emt 0:01:41]} 23. Ra5 {[%emt 0:01:39]} Rb7 {[%emt 0:01:31]} 24. Rd3 {[%emt 0:03:06]} Kf8 {[%emt 0:02:16]} 25. e4 {[%emt 0:01:53]} Nb6 {[%emt 0:00:40]} 26. Rc5 {[%emt 0:01:11]} Ke7 {[%emt 0:00:53]} 27. Rc2 {[%emt 0:00:59]} Bf6 {[%emt 0:00:23]} 28. b5 {[%emt 0:07:36]} Nd7 {[%emt 0:00:54]} 29. Rb3 {[%emt 0:00:24]} Ne5+ {[%emt 0:00:48]} 30. Kg2 {[%emt 0:00:20]} Kd7 {[%emt 0:01:27]} 31. a4 {[%emt 0:03:45]} Bd8 {[%emt 0:00:45]} 32. Rc5 {[%emt 0:01:30]} Kd6 {[%emt 0:01:46]} 33. Rc8 {[%emt 0:02:32]} Ba5 {[%emt 0:00:34]} 34. Rb1 {[%emt 0:05:47]} Rc7 {[%emt 0:01:08]} 35. Rd1+ {[%emt 0:01:01]} Ke7 {[%emt 0:00:44]} 36. Ra8 {[%emt 0:02:04]} Bb6 {[%emt 0:00:46]} 37. Rd2 {[%emt 0:03:06]} Nc4 {[%emt 0:00:41]} 38. Ra2 {[%emt 0:01:28]} Ne3+ {[%emt 0:00:29]} 39. Kf3 {[%emt 0:00:00]} Nc4 {[%emt 0:00:00]} 40. Kg2 {[%emt 0:00:00]} g5 {[%emt 0:00:00]} 41. e3 {[%emt 0:04:58]} Nxe3+ {[%emt 0:04:47]} 42. Kf3 {[%emt 0:00:13]} g4+ {[%emt 0:01:00]} 43. Ke2 {[%emt 0:00:09]} Nc4 {[%emt 0:01:19]} 44. Rc2 {[%emt 0:00:22]} Kd6 {[%emt 0:02:04]} 45. Rd8+ {[%emt 0:01:17]} Ke5 {[%emt 0:00:58]} 46. Kd3 {[%emt 0:01:39]} Nd6 {[%emt 0:01:17]} 47. Rxc7 {[%emt 0:02:36]} Bxc7 {[%emt 0:00:15]} 48. Rd7 {[%emt 0:00:11]} Bb6 {[%emt 0:01:04]} 49. a5 {[%emt 0:01:37]} Bg1 {[%emt 0:01:15]} 50. b6 {[%emt 0:02:26]} Nxe4 {[%emt 0:14:24]} 51. bxa7 {[%emt 0:01:30]} Bxa7 {[%emt 0:01:25]} 52. Rxa7 {[%emt 0:00:29]} Nd6 {[%emt 0:00:31]} 53. a6 {[%emt 0:00:23]} Nc8 {[%emt 0:00:20]} 54. Rxf7 {[%emt 0:00:23]} Kd5 {[%emt 0:00:23]} 55. a7 {[%emt 0:00:08]} Nb6 {[%emt 0:00:08]} 56. Rf8 {[%emt 0:00:08]} e5 {[%emt 0:00:06]} 57. a8=Q+ {[%emt 0:00:09]} Nxa8 {[%emt 0:00:06]} 58. Rxa8 {[%emt 0:00:04]} e4+ {[%emt 0:00:07]} 59. Ke3 {[%emt 0:00:03]} Ke5 {[%emt 0:00:06]} 60. Ra5+ {[%emt 0:00:05]} 1-0